bitfinex-derivatives/quotes_SOLF0:USTF0_20250320
["timestamp","ask_amount","ask_price","bid_price","bid_amount"]
[1742511370804,75.56735021,127.31,127.3,0.05465207]
[1742511372317,67.70875021,127.31,127.3,7.91385207]
[1742511373395,67.70875021,127.31,127.3,0.05465207]
[1742511373806,175.72671418,127.31,127.3,0.05465207]
[1742511374302,183.58531418,127.31,127.3,0.05465207]
[1742511375207,183.58531418,127.31,127.2,15.7307]
[1742511375208,7.8612,127.27,127.2,15.7307]
[1742511375403,27.8,127.26,127.17,2.1889]
[1742511375601,27.8,127.25,127.17,2.1889]
[1742511375904,27.8,127.27,127.24,7.8629]
[1742511376519,27.8547295,127.27,127.24,7.92183913]
[1742511376799,27.8547295,127.27,127.25,7.8622]
[1742511377010,27.8547295,127.27,127.24,0.05893913]
[1742511377804,27.8547295,127.27,127.24,7.92153913]
[1742511378002,27.8547295,127.27,127.24,0.05893913]
[1742511378304,0.0547295,127.27,127.24,7.92153913]
[1742511378602,27.8547295,127.27,127.24,7.92153913]
[1742511379805,67.65857019,127.26,127.25,7.8622]
[1742511382513,24.18847318,127.26,127.25,7.8622]
[1742511384616,74.98482651,127.27,127.24,0.05893913]
[1742511386421,47.18482651,127.27,127.24,0.05893913]
[1742511387918,47.18482651,127.27,127.26,7.8617]
[1742511388119,14.58225375,127.27,127.26,7.8617]
[1742511389814,3.7147295,127.27,127.26,7.8617]
[1742511396720,0.0547295,127.27,127.26,7.8617]
[1742511402123,24.1822362,127.27,127.26,7.8617]
[1742511404317,24.1822362,127.27,127.25,7.862]
[1742511404823,35.04976045,127.27,127.25,7.862]
[1742511406123,35.04976045,127.27,127.24,0.05893913]
[1742511406725,67.65233321,127.27,127.24,0.05893913]
[1742511407325,67.65233321,127.27,127.25,7.8617]
[1742511407514,24.1822362,127.27,127.25,7.8617]
[1742511407715,0.0547295,127.27,127.24,0.05893913]
[1742511409027,35.04438923,127.27,127.24,0.05893913]
[1742511409625,35.04438923,127.27,127.26,7.8617]
[1742511411412,67.6050931,127.27,127.26,7.8617]
[1742511417028,67.6050931,127.27,127.26,7.8617]
[1742511420919,67.6050931,127.27,127.24,27.85893913]
[1742511421124,67.6050931,127.27,127.24,0.05893913]
[1742511421633,7.862,127.26,127.24,7.92153913]
[1742511422335,151.44136881,127.27,127.24,7.92153913]
[1742511423542,7.8618,127.26,127.24,7.92153913]
[1742511424433,43.42894094,127.25,127.24,7.92153913]
[1742511426536,35.00432885,127.25,127.24,7.92153913]
[1742511428739,14.36823707,127.26,127.25,7.8623]
[1742511428942,3.5,127.26,127.25,7.8623]
[1742511430124,38.53566457,127.26,127.25,7.8623]
[1742511432545,71.13910927,127.26,127.25,7.8623]
[1742511435546,38.53566457,127.26,127.25,7.8623]
[1742511437541,71.13910927,127.26,127.25,7.8623]
[1742511443643,67.63910927,127.26,127.25,7.8623]
[1742511453760,117.37498698,127.27,127.26,7.8617]
[1742511453961,117.37498698,127.27,127.26,35.6617]
[1742511457280,3.4647295,127.27,127.26,35.6617]
[1742511461573,3.4647295,127.27,127.26,7.8617]
[1742511463669,3.4647295,127.27,127.25,35.6619]
[1742511463869,3.4647295,127.27,127.24,0.05893913]
[1742511464270,3.4647295,127.27,127.24,7.92153913]
[1742511464673,11.3257295,127.27,127.24,0.05893913]
[1742511465582,0.0547295,127.27,127.24,7.92173913]
[1742511467586,0.0547295,127.27,127.24,0.05893913]
[1742511467888,3.33,127.26,127.24,0.05893913]
[1742511468285,3.33,127.26,127.25,7.8623]
[1742511468691,3.33,127.26,127.25,35.6623]
[1742511473595,3.33,127.26,127.25,85.6623]
[1742511474596,0.0547295,127.27,127.26,7.8617]
[1742511478192,2.95e-05,127.27,127.26,7.8617]
[1742511491805,2.95e-05,127.27,127.25,57.8619]
[1742511492195,2.95e-05,127.27,127.25,50.0]
[1742511493001,2.95e-05,127.27,127.26,7.8617]
[1742511498013,2.95e-05,127.27,127.25,77.78]
[1742511498804,2.95e-05,127.27,127.26,7.8617]
[1742511500216,32.58298961,127.3,127.25,77.78]
[1742511501412,0.05203263,127.29,127.25,77.78]
[1742511502517,0.05203263,127.29,127.28,7.8604]
[1742511502704,0.05203263,127.29,127.28,35.6404]
[1742511502904,55.6095302,127.31,127.28,27.78]
[1742511503820,55.6095302,127.31,127.3,7.8592]
[1742511504019,55.66864034,127.31,127.3,35.6392]
[1742511504821,0.05911014,127.31,127.3,35.6392]
[1742511510618,7.8562,127.35,127.32,7.8576]
[1742511510819,68.21878961,127.36,127.3,27.78]
[1742511511320,68.21878961,127.36,127.32,7.8575]
[1742511511821,0.05518309,127.35,127.33,0.05428921]
[1742511512021,7.91128309,127.35,127.33,0.05428921]
[1742511512724,0.05518309,127.35,127.33,7.91158921]
[1742511513424,0.05518309,127.35,127.34,7.8567]
[1742511513613,0.05518309,127.35,127.33,0.05428921]
[1742511514222,0.05518309,127.35,127.34,7.8567]
[1742511515114,43.41924194,127.37,127.36,7.8555]
[1742511515324,86.94251921,127.38,127.36,27.78]
[1742511515720,86.94251921,127.38,127.37,7.8549]
[1742511517421,86.94251921,127.38,127.36,35.69156]
[1742511517727,86.94251921,127.38,127.36,27.83636]
[1742511518424,0.05077574,127.39,127.37,7.8549]
[1742511520428,0.05077574,127.39,127.38,7.8542]
[1742511535541,7.8501,127.45,127.42,7.8517]
[1742511535742,27.76,127.44,127.42,7.8517]
[1742511536244,35.6106,127.44,127.41,7.8521]
[1742511536743,35.66604222,127.44,127.41,7.90182157]
[1742511537446,7.90604222,127.44,127.41,7.90182157]
[1742511537749,35.66604222,127.44,127.42,7.8517]
[1742511538253,27.81544222,127.44,127.43,7.8512]
[1742511538551,27.81544222,127.44,127.41,0.04972157]
[1742511538940,27.81544222,127.44,127.42,7.8514]
[1742511539355,35.66604222,127.44,127.42,7.8514]
[1742511539550,35.66604222,127.44,127.41,0.04972157]
[1742511539756,35.66604222,127.44,127.41,7.90182157]
[1742511540257,7.8512,127.43,127.41,7.90182157]
[1742511540756,7.8512,127.43,127.41,0.04972157]
[1742511541155,27.81544222,127.44,127.41,0.04972157]
[1742511541355,27.81544222,127.44,127.35,259.28]
[1742511541559,27.76,127.44,127.35,259.28]
[1742511542263,7.8541,127.39,127.36,7.8552]
[1742511542457,35.6141,127.39,127.38,0.05945836]
[1742511555668,27.76,127.39,127.38,0.05945836]
[1742511556666,35.6136,127.39,127.38,0.05945836]
[1742511557871,60.31259432,127.41,127.38,0.05945836]
[1742511558578,60.31259432,127.41,127.39,7.8533]
[1742511559078,32.55259432,127.41,127.39,7.8533]
[1742511560078,0.05089422,127.41,127.39,7.8533]
[1742511561776,7.90329422,127.41,127.39,7.8533]
[1742511562870,0.05089422,127.41,127.39,7.8533]
[1742511563973,0.05089422,127.41,127.38,0.05945836]
[1742511565071,0.05089422,127.41,127.38,27.81945836]
[1742511567480,7.90329422,127.41,127.39,7.8533]
[1742511567681,0.05089422,127.41,127.39,7.8533]
[1742511570181,0.05089422,127.41,127.38,27.81945836]
[1742511572182,0.05089422,127.41,127.39,7.8531]
[1742511572982,0.05089422,127.41,127.38,27.81945836]
[1742511574282,0.05089422,127.41,127.4,7.853]
[1742511576679,32.5017001,127.45,127.43,7.851]
[1742511577087,32.5017001,127.45,127.39,4.1174]
[1742511577382,7.8507,127.44,127.41,7.8518]
[1742511577579,7.8507,127.44,127.39,4.1174]
[1742511577580,72.65706376,127.46,127.39,4.1174]
[1742511577888,0.04968535,127.44,127.42,7.8515]
[1742511578474,7.90028535,127.44,127.42,7.8515]
[1742511580084,0.04968535,127.44,127.41,0.05250169]
[1742511581581,0.04968535,127.44,127.42,7.8518]
[1742511582192,0.04968535,127.44,127.41,0.05250169]
[1742511583289,0.04968535,127.44,127.43,7.8512]
[1742511598690,10.84624394,127.47,127.42,27.74]
[1742511598691,27.74,127.47,127.42,27.74]
[1742511599092,27.74,127.47,127.43,7.8506]
[1742511599496,27.74,127.47,127.42,27.74]
[1742511599896,0.05370173,127.46,127.43,0.05182135]
[1742511600403,0.05370173,127.46,127.44,7.8503]
[1742511600601,0.05370173,127.46,127.43,0.05182135]
[1742511602503,7.90330173,127.46,127.44,7.8505]
[1742511602808,0.05370173,127.46,127.43,0.05182135]
[1742511602995,7.8505,127.44,127.43,0.05182135]
[1742511603594,7.8516,127.43,127.39,4.1174]
[1742511603794,6.2773,127.47,127.39,4.1174]
[1742511603991,27.74,127.46,127.39,4.1174]
[1742511604199,27.74,127.46,127.39,11.9705]
[1742511604398,7.8523,127.42,127.39,7.8531]
[1742511604897,7.91016547,127.42,127.4,7.8529]
[1742511605398,7.91016547,127.42,127.39,0.0528937]
[1742511605399,7.8524,127.41,127.39,7.9061937]
[1742511606497,7.90996547,127.42,127.4,7.8529]
[1742511606710,0.05786547,127.42,127.4,7.8529]
[1742511607803,0.05786547,127.42,127.41,7.8524]
[1742511615317,0.05786547,127.42,127.4,35.5928]
[1742511615616,0.05786547,127.42,127.4,7.8528]
[1742511615816,0.05786547,127.42,127.41,7.8524]
[1742511619005,10.89820548,127.45,127.44,7.8505]
[1742511619614,10.89820548,127.45,127.39,4.2039]
[1742511619810,7.8517,127.43,127.39,31.9439]
[1742511620017,7.90799986,127.43,127.41,0.05707353]
[1742511620218,0.05629986,127.43,127.41,0.05707353]
[1742511620414,7.8518,127.42,127.41,0.05707353]
[1742511621314,0.05629986,127.43,127.41,0.05707353]
[1742511621722,0.05629986,127.43,127.41,7.90907353]
[1742511622111,0.05629986,127.43,127.41,0.05707353]
[1742511622423,7.90769986,127.43,127.41,0.05707353]
[1742511623422,7.90769986,127.43,127.41,7.90937353]
[1742511624128,0.05629986,127.43,127.41,7.90937353]
[1742511624423,0.05629986,127.43,127.42,7.8518]
[1742511629231,0.05629986,127.43,127.41,7.90907353]
[1742511629831,0.05629986,127.43,127.42,7.8518]
[1742511631122,0.05629986,127.43,127.41,7.90917353]
[1742511631323,7.90769986,127.43,127.41,7.90917353]
[1742511633229,0.05629986,127.43,127.41,7.90917353]
[1742511633431,0.05629986,127.43,127.42,7.8518]
[1742511644638,0.05629986,127.43,127.41,9.97997353]
[1742511644836,0.05629986,127.43,127.41,2.12787353]
[1742511645229,0.05629986,127.43,127.42,7.8518]
[1742511645942,0.05629986,127.43,127.41,9.97997353]
[1742511646334,0.05629986,127.43,127.41,7.90917353]
[1742511646642,0.05629986,127.43,127.42,7.8518]
[1742511646934,0.05629986,127.43,127.41,0.05707353]
[1742511647139,0.05629986,127.43,127.41,7.90917353]
[1742511648128,0.05629986,127.43,127.42,7.8518]
[1742511649240,0.05629986,127.43,127.41,7.90937353]
[1742511651138,27.72,127.42,127.41,0.05707353]
[1742511651337,27.72,127.42,127.33,2.1761]
[1742511651733,7.8555,127.36,127.33,10.0332]
[1742511651930,27.72,127.37,127.33,7.8571]
[1742511652440,0.05243864,127.36,127.34,0.05412211]
[1742511652742,7.8562,127.35,127.34,0.05412211]
[1742511653143,35.5762,127.35,127.34,0.05412211]
[1742511653747,27.72,127.35,127.34,0.05412211]
[1742511654154,0.05243864,127.36,127.34,0.05412211]
[1742511654845,0.05243864,127.36,127.34,7.91052211]
[1742511655837,0.05243864,127.36,127.35,7.8561]
[1742511656234,27.72,127.37,127.36,7.8555]
[1742511656948,27.74,127.39,127.37,7.8548]
[1742511657353,27.7942736,127.39,127.37,7.91335551]
[1742511657749,35.6479736,127.39,127.37,0.05855551]
[1742511658049,27.7942736,127.39,127.37,0.05855551]
[1742511658850,7.8542,127.38,127.37,0.05855551]
[1742511660253,35.6481736,127.39,127.37,0.05855551]
[1742511660751,27.7942736,127.39,127.38,7.8542]
[1742511661953,27.7942736,127.39,127.37,0.05855551]
[1742511662353,35.6481736,127.39,127.37,0.05855551]
[1742511662554,27.7942736,127.39,127.37,0.05855551]
[1742511662946,35.6482736,127.39,127.37,0.05855551]
[1742511664860,7.8542,127.38,127.37,0.05855551]
[1742511665655,27.7942736,127.39,127.34,7.8564]
[1742511665861,27.7942736,127.39,127.31,4.2779]
[1742511666056,27.74,127.39,127.31,4.2779]
[1742511666256,7.8545,127.38,127.35,7.8556]
[1742511666456,27.74,127.37,127.35,7.8556]
[1742511666656,27.74,127.37,127.35,7.91455002]
[1742511666962,27.79468481,127.37,127.35,7.91455002]
[1742511667663,35.64968481,127.37,127.35,7.91455002]
[1742511668462,27.79468481,127.37,127.35,7.91455002]
[1742511668763,27.79468481,127.37,127.36,7.8555]
[1742511668964,27.79468481,127.37,127.35,0.05895002]
[1742511669761,7.8555,127.36,127.35,0.05895002]
[1742511669957,27.79468481,127.37,127.35,0.05895002]
[1742511670965,7.8555,127.36,127.35,0.05895002]
[1742511673758,27.79468481,127.37,127.35,0.05895002]
[1742511674260,27.79468481,127.37,127.36,7.8555]
[1742511675871,0.05468481,127.37,127.36,7.8555]
[1742511676064,27.79468481,127.37,127.36,7.8555]
[1742511677564,0.05468481,127.37,127.36,7.8555]
[1742511678973,27.74,127.4,127.39,7.8535]
[1742511679270,45.16243423,127.42,127.39,7.8535]
[1742511679574,35.5927,127.41,127.39,7.8535]
[1742511679966,27.74,127.41,127.39,7.8535]
[1742511680166,27.79692479,127.41,127.39,7.90315047]
[1742511680774,27.79692479,127.41,127.4,7.853]
[1742511681079,0.05692479,127.41,127.4,7.853]
[1742511681473,45.16243423,127.42,127.41,7.8524]
[1742511681669,1.5696123,127.42,127.41,7.8524]
[1742511682360,43.59282193,127.44,127.42,7.8512]
[1742511682678,43.64318938,127.44,127.42,7.8512]
[1742511682870,43.64318938,127.44,127.43,7.8512]
[1742511683068,43.64318938,127.44,127.42,0.05191625]
[1742511684575,0.05036745,127.44,127.42,0.05191625]
[1742511684768,0.05036745,127.44,127.42,7.90331625]
[1742511686373,0.05036745,127.44,127.43,7.8512]
[1742511691177,51.44062193,127.49,127.46,7.849]
[1742511691381,51.44062193,127.49,127.42,2.0462]
[1742511691980,7.8482,127.48,127.45,7.8495]
[1742511692272,7.8482,127.48,127.45,7.90569684]
[1742511692481,7.90561662,127.48,127.45,7.90569684]
[1742511692775,35.62561662,127.48,127.45,7.90569684]
[1742511692979,27.77741662,127.48,127.45,0.05619684]
[1742511693774,7.8493,127.46,127.45,0.05619684]
[1742511693977,35.5693,127.46,127.45,0.05619684]
[1742511698885,27.72,127.46,127.45,7.90609684]
[1742511699200,27.72,127.46,127.45,0.05619684]
[1742511699375,35.5693,127.46,127.45,0.05619684]
[1742511699572,27.72,127.46,127.45,0.05619684]
[1742511700586,0.05741662,127.48,127.45,0.05619684]
[1742511700787,27.77741662,127.48,127.45,0.05619684]
[1742511700986,0.05741662,127.48,127.47,7.8487]
[1742511702887,0.05741662,127.48,127.46,9.8601]
[1742511703385,0.05741662,127.48,127.45,0.05619684]
[1742511703588,27.77741662,127.48,127.45,0.05619684]
[1742511703889,35.62581662,127.48,127.45,0.05619684]
[1742511704076,35.62581662,127.48,127.45,7.90609684]
[1742511705893,7.8487,127.47,127.45,7.90609684]
[1742511706291,27.77741662,127.48,127.45,0.05619684]
[1742511706493,7.8493,127.47,127.45,0.05619684]
[1742511707178,27.77741662,127.48,127.45,0.05619684]
[1742511710394,7.8493,127.46,127.45,0.05619684]
[1742511713499,7.8515,127.43,127.39,27.72]
[1742511713699,7.8515,127.43,127.41,7.8522]
[1742511713999,27.72,127.44,127.41,7.8522]
[1742511714205,27.72,127.44,127.4,266.9528]
[1742511714594,7.8523,127.42,127.41,0.05546044]
[1742511714893,35.5723,127.42,127.41,0.05546044]
[1742511715899,27.72,127.42,127.41,0.05546044]
[1742511716102,0.05767652,127.43,127.41,0.05546044]
[1742511716601,0.05767652,127.43,127.42,7.8518]
[1742511719399,0.05767652,127.43,127.41,0.05546044]
[1742511719599,7.90897652,127.43,127.41,0.05546044]
[1742511719800,0.05767652,127.43,127.41,0.05546044]
[1742511720294,7.8518,127.42,127.41,0.05546044]
[1742511720807,0.05767652,127.43,127.41,0.05546044]
[1742511721194,0.05767652,127.43,127.41,7.90776044]
[1742511721399,0.05767652,127.43,127.41,0.05546044]
[1742511721710,0.05767652,127.43,127.42,7.8518]
[1742511722704,0.05767652,127.43,127.41,7.90756044]
[1742511723301,0.05767652,127.43,127.42,7.8518]
[1742511723615,0.05767652,127.43,127.41,0.05546044]
[1742511723810,0.05767652,127.43,127.41,7.90736044]
[1742511724017,0.05767652,127.43,127.41,0.05546044]
[1742511724397,0.05767652,127.43,127.42,7.8518]
[1742511727510,0.05767652,127.43,127.41,7.90746044]
[1742511728406,0.05767652,127.43,127.41,0.05546044]
[1742511728611,0.05767652,127.43,127.42,7.8518]
[1742511729021,0.05767652,127.43,127.41,7.90766044]
[1742511729613,0.05767652,127.43,127.41,0.05546044]
[1742511730513,7.90917652,127.43,127.41,7.90786044]
[1742511733414,7.90917652,127.43,127.42,7.8518]
[1742511733415,0.05767652,127.43,127.42,7.8518]
[1742511734822,7.90887652,127.43,127.42,7.8518]
[1742511735117,7.90887652,127.43,127.41,7.90756044]
[1742511735525,7.8518,127.42,127.41,0.05546044]
[1742511736125,7.90917652,127.43,127.41,0.05546044]
[1742511736513,7.90917652,127.43,127.41,7.90786044]
[1742511737027,7.8518,127.42,127.41,0.05546044]
[1742511737321,27.72,127.42,127.41,0.05546044]
[1742511738229,35.5718,127.42,127.41,0.05546044]
[1742511738618,27.72,127.42,127.36,2.0297]
[1742511738825,27.72,127.42,127.35,261.0251]
[1742511739322,7.8546,127.38,127.35,261.0251]
[1742511739527,27.72,127.39,127.35,261.0251]
[1742511739832,0.05188908,127.38,127.36,7.8555]
[1742511740031,0.05188908,127.38,127.35,259.08976432]
[1742511740615,0.05188908,127.38,127.35,266.94536432]
[1742511741334,27.72,127.37,127.35,0.04976432]
[1742511741925,27.72,127.37,127.35,7.90576432]
[1742511742128,0.05188908,127.38,127.35,0.04976432]
[1742511744039,0.05188908,127.38,127.37,7.8549]
[1742511749830,38.61820548,127.42,127.41,7.8524]
[1742511750344,38.61820548,127.42,127.37,2.011]
[1742511751039,0.05198617,127.41,127.38,0.05931572]
[1742511751234,0.05198617,127.41,127.4,7.853]
[1742511767955,0.05198617,127.41,127.39,7.8533]
[1742511768551,0.05198617,127.41,127.38,0.05931572]
[1742511768744,27.72,127.4,127.38,0.05931572]
[1742511768948,7.8536,127.39,127.38,0.05931572]
[1742511775753,27.72,127.4,127.3,286.86]
[1742511776160,7.8564,127.35,127.3,286.86]
[1742511776354,35.5764,127.35,127.3,259.14]
[1742511776549,7.8574,127.33,127.31,7.8583]
[1742511776757,7.8574,127.33,127.31,7.90772056]
[1742511776956,0.05668508,127.34,127.31,0.04942056]
[1742511777160,0.05668508,127.34,127.32,7.8575]
[1742511778356,0.05668508,127.34,127.31,7.90772056]
[1742511780066,27.72,127.33,127.31,0.04942056]
[1742511780457,27.72,127.33,127.31,7.90762056]
[1742511780660,27.72,127.33,127.31,0.04942056]
[1742511781065,0.05668508,127.34,127.31,0.04942056]
[1742511781567,0.05668508,127.34,127.33,7.8573]
[1742511788968,0.05668508,127.34,127.32,7.8576]
[1742511789271,27.72,127.33,127.31,0.04942056]
[1742511789774,27.72,127.33,127.31,7.90772056]
[1742511795173,35.5774,127.33,127.31,7.90772056]
[1742511797275,27.72,127.33,127.17,23.6009]
[1742511797578,27.72,127.33,127.24,27.74]
[1742511797773,27.72,127.33,127.27,7.8608]
[1742511798177,7.86,127.29,127.27,7.8608]
[1742511798378,35.58,127.29,127.27,7.8608]
[1742511798573,35.63950213,127.29,127.27,7.92054574]
[1742511798983,27.77950213,127.29,127.27,7.92054574]
[1742511800577,27.77950213,127.29,127.23,6.2454]
[1742511801076,7.8607,127.28,127.23,6.2454]
[1742511801271,27.74,127.27,127.23,6.2454]
[1742511801478,27.74,127.29,127.23,6.2454]
[1742511801677,0.05026889,127.27,127.26,7.8617]
[1742511802684,6.889e-05,127.27,127.26,7.8617]
[1742511802883,43.59282193,127.33,127.26,27.74]
[1742511803182,71.33282193,127.33,127.26,27.74]
[1742511803385,71.33282193,127.33,127.32,7.8579]
[1742511805176,43.59282193,127.33,127.32,7.8579]
[1742511805378,0.05777848,127.34,127.33,7.8573]
[1742511805882,7.848e-05,127.34,127.33,7.8573]
[1742511810983,27.74,127.39,127.37,7.8544]
[1742511811383,27.74,127.39,127.34,27.74]
[1742511811689,27.74,127.39,127.36,7.8551]
[1742511812090,27.79096307,127.39,127.36,7.91481869]
[1742511812290,27.79096307,127.39,127.37,7.8548]
[1742511812886,0.05096307,127.39,127.37,7.8548]
[1742511813892,0.05096307,127.39,127.38,7.8542]
[1742511815998,0.05096307,127.39,127.37,7.8545]
[1742511817998,0.05096307,127.39,127.36,27.77971869]
[1742511818198,0.05096307,127.39,127.36,0.05971869]
[1742511818788,7.8543,127.38,127.36,7.91511869]
[1742511818989,7.8543,127.38,127.36,0.05971869]
[1742511819300,7.8543,127.38,127.36,7.91511869]
[1742511820099,7.90486307,127.39,127.36,7.91511869]
[1742511820489,7.90486307,127.39,127.37,7.8547]
[1742511820694,0.05096307,127.39,127.37,7.8547]
[1742511823301,7.90466307,127.39,127.36,7.91491869]
[1742511823498,0.05096307,127.39,127.36,7.91491869]
[1742511823901,7.8545,127.38,127.36,7.91491869]
[1742511825001,7.90486307,127.39,127.36,7.91491869]
[1742511825202,7.90486307,127.39,127.37,7.8547]
[1742511826295,7.8543,127.38,127.36,7.91491869]
[1742511827412,7.90486307,127.39,127.36,7.91491869]
[1742511828719,7.8543,127.38,127.36,7.91491869]
[1742511829015,0.05096307,127.39,127.36,0.05971869]
[1742511829423,7.8548,127.38,127.36,0.05971869]
[1742511829918,7.8548,127.38,127.36,7.91501869]
[1742511833919,7.8549,127.37,127.36,0.05971869]
[1742511834128,0.05096307,127.39,127.36,0.05971869]
[1742511834529,7.90496307,127.39,127.37,7.8546]
[1742511834726,0.05096307,127.39,127.36,0.05971869]
[1742511835232,7.8542,127.38,127.36,7.91491869]
[1742511835833,7.90486307,127.39,127.37,7.8549]
[1742511836232,0.05096307,127.39,127.36,0.05971869]
[1742511836436,0.05096307,127.39,127.38,7.8542]
[1742511842338,0.05096307,127.39,127.37,7.8545]
[1742511848142,7.90466307,127.39,127.37,7.8545]
[1742511848644,0.05096307,127.39,127.37,7.8545]
[1742511849946,0.05096307,127.39,127.38,7.8542]
[1742511858149,81.16608962,127.41,127.37,29.7907]
[1742511859348,0.05301743,127.4,127.39,7.8536]
[1742511859553,0.05301743,127.4,127.39,35.5736]
[1742511860951,1.743e-05,127.4,127.39,35.5736]
[1742511861344,9.786e-05,127.41,127.4,7.853]
[1742511861550,86.26315805,127.42,127.39,27.72]
[1742511861957,86.26315805,127.42,127.41,7.8524]
[1742511862160,86.26315805,127.42,127.41,35.5724]
[1742511862357,7.8508,127.44,127.42,7.8517]
[1742511862554,0.05193978,127.43,127.41,27.72]
[1742511862858,0.05193978,127.43,127.42,0.05555226]
[1742511864466,0.05193978,127.43,127.42,7.90735226]
[1742511866355,7.849,127.47,127.44,7.8502]
[1742511867361,7.8484,127.48,127.44,7.8502]
[1742511867562,0.05563813,127.47,127.44,7.8502]
[1742511867762,7.90433813,127.47,127.45,0.05755803]
[1742511869767,7.90433813,127.47,127.45,7.90735803]
[1742511870367,0.05563813,127.47,127.45,7.90735803]
[1742511870558,0.05563813,127.47,127.46,7.8493]
[1742511874060,0.05563813,127.47,127.46,35.5493]
[1742511876160,0.05563813,127.47,127.46,48.18706334]
[1742511877964,0.05563813,127.47,127.46,27.7]
[1742511878170,7.90463813,127.47,127.45,281.71732137]
[1742511878370,7.90463813,127.47,127.45,266.94715803]
[1742511879764,0.05563813,127.47,127.45,266.94715803]
[1742511880877,7.90443813,127.47,127.45,266.94715803]
[1742511881578,7.90443813,127.47,127.45,279.58492137]
[1742511881785,0.05563813,127.47,127.45,279.58492137]
[1742511882078,0.05563813,127.47,127.46,7.8493]
[1742511885578,0.05563813,127.47,127.45,279.58492137]
[1742511885768,7.90453813,127.47,127.45,279.58492137]
[1742511887278,7.8493,127.46,127.45,259.09755803]
[1742511887477,7.8493,127.46,127.45,0.05755803]
[1742511888180,48.24240147,127.47,127.45,0.05755803]
[1742511888381,35.60463813,127.47,127.45,0.05755803]
[1742511889283,35.60463813,127.47,127.45,7.90735803]
[1742511889779,27.75563813,127.47,127.45,7.90735803]
[1742511890178,0.05563813,127.47,127.46,7.8493]
[1742511890380,0.05563813,127.47,127.46,20.48706334]
[1742511894893,0.05563813,127.47,127.45,7.90715803]
[1742511895391,0.05563813,127.47,127.45,0.05755803]
[1742511895592,7.90463813,127.47,127.45,0.05755803]
[1742511895888,0.05563813,127.47,127.45,0.05755803]
[1742511896083,7.90433813,127.47,127.45,20.54512137]
[1742511897288,7.90433813,127.47,127.45,7.90735803]
[1742511897494,7.8493,127.46,127.45,0.05755803]
[1742511898995,35.60463813,127.47,127.45,0.05755803]
[1742511899192,35.60463813,127.47,127.45,7.90735803]
[1742511899799,7.8493,127.46,127.45,0.05755803]
[1742511900486,35.60463813,127.47,127.45,0.05755803]
[1742511901601,7.8493,127.46,127.45,0.05755803]
[1742511902904,35.60463813,127.47,127.45,0.05755803]
[1742511903205,27.75563813,127.47,127.45,0.05755803]
[1742511903410,7.8493,127.46,127.45,0.05755803]
[1742511903995,35.60473813,127.47,127.45,7.90745803]
[1742511904898,27.75563813,127.47,127.45,7.90745803]
[1742511905098,0.05563813,127.47,127.46,20.48706334]
[1742511906005,0.05563813,127.47,127.45,0.05755803]
[1742511906411,0.05563813,127.47,127.45,12.69532137]
[1742511906791,0.05563813,127.47,127.46,7.8493]
[1742511906998,0.05563813,127.47,127.45,12.69532137]
[1742511907603,0.05563813,127.47,127.45,20.54482137]
[1742511908108,0.05563813,127.47,127.46,7.8493]
[1742511909398,0.05563813,127.47,127.46,20.48706334]
[1742511910715,0.05563813,127.47,127.46,48.18706334]
[1742511916515,7.90473813,127.47,127.45,0.05755803]
[1742511917015,40.39340147,127.47,127.45,0.05755803]
[1742511917214,7.8493,127.46,127.45,0.05755803]
[1742511918007,48.24240147,127.47,127.45,0.05755803]
[1742511918310,35.60463813,127.47,127.45,0.05755803]
[1742511918506,27.75563813,127.47,127.45,7.90745803]
[1742511918813,0.05563813,127.47,127.46,12.63776334]
[1742511919209,0.05563813,127.47,127.46,20.48706334]
[1742511919404,0.05563813,127.47,127.45,12.69532137]
[1742511919908,0.05563813,127.47,127.46,7.8493]
[1742511926020,0.05563813,127.47,127.46,20.48706334]
[1742511927514,0.05563813,127.47,127.46,48.18706334]
[1742511929518,3.813e-05,127.47,127.46,50.32426334]
[1742511929721,4.057e-05,127.47,127.46,52.40346334]
[1742511930018,1.41349075,127.49,127.48,7.8481]
[1742511930221,1.41349075,127.49,127.48,20.48586334]
[1742511932321,1.41349075,127.49,127.48,7.8481]
[1742511935123,1.41349075,127.49,127.48,20.48586334]
[1742511938819,0.05013173,127.5,127.48,40.33776334]
[1742511939122,2.86954997,127.51,127.49,12.63776334]
[1742511939312,10.71584997,127.51,127.48,40.33776334]
[1742511939511,10.71584997,127.51,127.48,48.18556334]